fUST/lending_fUST_20251115
["ID","MTS","AMOUNT","RATE_DAILY","PERIOD"]
[393998978,1763171452988,-1259.05,0.00052054,120]
[393998979,1763171452997,-865.15,0.00052054,120]
[393998980,1763171453006,-478.13887562,0.00052054,120]
[393998981,1763171453015,-500.0,0.00052054,120]
[393998982,1763171453025,-500.58207021,0.00052054,120]
[393998983,1763171453035,-501.35066309,0.00052054,120]
[393998984,1763171453047,-500.0,0.00052054,120]
[393998985,1763171453056,-513.25552799,0.00052054,120]
[393998986,1763171453066,-500.0,0.00052054,120]
[393998987,1763171453077,-549.21355902,0.00052054,120]
[393998988,1763171453088,-500.0,0.00052054,120]
[393998989,1763171453098,-500.0,0.00052054,120]
[393998990,1763171453110,-955.73,0.00052054,120]
[393998991,1763171453119,-500.0,0.00052054,120]
[393998992,1763171453129,-500.0,0.00052054,120]
[393998993,1763171453139,-500.0,0.00052054,10]
[393998994,1763171453148,-500.0,0.00052054,120]
[393998995,1763171453158,-500.50616298,0.00052054,120]
[393998996,1763171453168,-500.0,0.00052054,120]
[393998997,1763171453177,-500.0,0.00052054,120]
[393998998,1763171453187,-500.0,0.00052054,120]
[393998999,1763171453196,-501.75139135,0.00052054,120]
[393999000,1763171453206,-500.0,0.00052054,120]
[393999001,1763171453215,-500.0,0.00052054,120]
[393999002,1763171453224,-500.0,0.00052054,120]
[393999003,1763171453234,-500.0,0.00052054,120]
[393999004,1763171453243,-500.0,0.00052054,120]
[393999005,1763171453253,-500.0,0.00052054,120]
[393999006,1763171453262,-500.0,0.00052054,120]
[393999007,1763171453271,-501.05118098,0.00052054,120]
[393999008,1763171453281,-500.0,0.00052054,120]
[393999009,1763171453290,-500.0,0.00052054,120]
[393999010,1763171453300,-500.0,0.00052054,120]
[393999011,1763171453309,-500.0,0.00052054,120]
[393999012,1763171453319,-1000.0,0.00052054,2]
[393999013,1763171453328,-500.0,0.00052054,120]
[393999014,1763171453338,-500.0,0.00052054,120]
[393999015,1763171453347,-500.78740834,0.00052054,30]
[393999016,1763171453359,-500.0,0.00052054,120]
[393999017,1763171453368,-500.0,0.00052054,120]
[393999018,1763171453378,-500.0,0.00052054,120]
[393999019,1763171453387,-500.0,0.00052054,120]
[393999020,1763171453396,-629.47,0.00052054,120]
[393999021,1763171453406,-500.0,0.00052054,120]
[393999022,1763171453415,-500.0,0.00052054,120]
[393999023,1763171453425,-500.0,0.00052054,120]
[393999024,1763171453435,-500.21665939,0.00052054,120]
[393999025,1763171453444,-307.7812536,0.00052054,120]
[393999026,1763171453454,-582.92,0.00052054,120]
[393999027,1763171453463,-500.0,0.00052054,120]
[393999028,1763171453473,-517.24760543,0.00052054,120]
[393999029,1763171453482,-274.92451629,0.00052054,120]
[393999030,1763171454670,-177.0,0.0002383,2]
[393999031,1763171454680,-151.0,0.000249,7]
[393999032,1763171454690,-151.757969,0.000249,7]
[393999033,1763171454700,-151.757969,0.000249,7]
[393999034,1763171454710,-151.757969,0.000249,7]
[393999035,1763171454720,-204.0,0.0002583,2]
[393999036,1763171454730,-367.1630007,0.00027546,2]
[393999037,1763171454740,-231.0,0.0002783,2]
[393999038,1763171454750,-258.0,0.0002983,2]
[393999039,1763171454759,-285.0,0.0003183,2]
[393999040,1763171454770,-312.0,0.0003383,120]
[393999041,1763171454780,-154.191972,0.00035,31]
[393999042,1763171454790,-151.757969,0.00035,31]
[393999043,1763171454801,-151.757969,0.00035,31]
[393999044,1763171454810,-151.757969,0.00035,31]
[393999045,1763171454821,-151.0,0.00035616,31]
[393999046,1763171454830,-151.0,0.00035616,31]
[393999047,1763171454840,-151.0,0.00035616,31]
[393999048,1763171454850,-277.792995,0.00035616,31]
[393999049,1763171454860,-339.0,0.0003583,120]
[393999050,1763171454870,-366.0,0.0003783,120]
[393999051,1763171454880,-393.0,0.0003983,120]
[393999052,1763171454890,-420.0,0.0004183,120]
[393999053,1763171454900,-151.0,0.00043288,120]
[393999054,1763171454909,-151.757969,0.00043288,120]
[393999055,1763171454919,-151.757969,0.00043288,120]
[393999056,1763171454929,-151.757969,0.00043288,120]
[393999057,1763171454939,-447.0,0.0004383,120]
[393999058,1763171454949,-474.0,0.0004583,120]
[393999059,1763171454958,-501.0,0.0004783,120]
[393999060,1763171454968,-528.0,0.0004983,120]
[393999061,1763171454977,-300.3678215,0.0005074,30]
[393999062,1763171454987,-151.0,0.00051462,120]
[393999063,1763171454996,-151.757969,0.00051462,120]
[393999064,1763171455006,-151.757969,0.00051462,120]
[393999065,1763171455016,-151.757969,0.00051462,120]
[393999066,1763171455025,-151.0,0.000518,120]
[393999067,1763171455035,-151.757969,0.000518,120]
[393999068,1763171455047,-151.0,0.000518,120]
[393999069,1763171455056,-151.757969,0.000518,120]
[393999070,1763171455066,-151.757969,0.000518,120]
[393999071,1763171455075,-151.757975,0.000518,120]
[393999072,1763171455087,-232.64722248,0.00052054,120]
[393999073,1763171455096,-500.0,0.00052054,120]
[393999074,1763171455106,-500.0,0.00052054,120]
[393999075,1763171455115,-500.0,0.00052054,120]
[393999076,1763171455124,-500.0,0.00052054,120]
[393999077,1763171455135,-809.9,0.00052054,120]
[393999078,1763171455144,-500.0,0.00052054,120]
[393999079,1763171455153,-500.0,0.00052054,120]
[393999080,1763171455163,-500.0,0.00052054,120]
[393999081,1763171455173,-203.4066596,0.00052054,120]
[393999082,1763171455182,-500.0,0.00052054,120]
[393999083,1763171455192,-509.83155533,0.00052054,120]
[393999084,1763171455201,-500.0,0.00052054,120]
[393999085,1763171455210,-500.0,0.00052054,120]
[393999086,1763171455220,-384.74368147,0.00052054,120]
[393999087,1763171455230,-500.0,0.00052054,120]
[393999088,1763171455239,-500.0,0.00052054,120]
[393999089,1763171455248,-500.0,0.00052054,2]
[393999090,1763171455258,-500.0,0.00052054,120]
[393999091,1763171455267,-500.0,0.00052054,120]
[393999092,1763171455276,-500.0,0.00052054,120]
[393999093,1763171455286,-500.0,0.00052054,120]
[393999094,1763171455296,-653.49,0.00052054,120]
[393999095,1763171455305,-360.86258711,0.00052054,120]
[393999096,1763171455372,-17.78064496,0.00052054,120]
[393999206,1763171967823,-494.7723684,0.00020769,2]
[393999212,1763172215991,-325.797206,0.00020764,2]
[393999216,1763172495393,-816.75505373,0.00021573,2]
[393999217,1763172495421,-150.0,0.00021669,2]
[393999218,1763172495442,-502.96448252,0.00021673,2]
[393999219,1763172495462,-4116.61187986,0.00021673,2]
[393999220,1763172495487,-183.72339369,0.000217,2]
[393999221,1763172495508,-183.72339368,0.000217,2]
[393999222,1763172495529,-1200.0,0.00021756,2]
[393999223,1763172495551,-300.0,0.00021756,2]
[393999224,1763172495577,-500.0,0.00021757,2]
[393999225,1763172495600,-500.0,0.00021757,2]
[393999226,1763172495622,-500.0,0.00021757,2]
[393999227,1763172495645,-500.0,0.00021757,2]
[393999228,1763172495667,-500.0,0.00021757,2]
[393999229,1763172495690,-571.91833556,0.00021757,2]
[393999230,1763172495714,-641.96502611,0.00021757,2]
[393999231,1763172495740,-500.0,0.00021757,2]
[393999232,1763172495764,-500.0,0.00021757,2]
[393999233,1763172495791,-500.0,0.00021757,2]
[393999234,1763172495816,-500.0,0.00021757,2]
[393999235,1763172495839,-583.84249501,0.00021757,2]
[393999236,1763172495866,-500.0,0.00021757,2]
[393999237,1763172495889,-500.0,0.00021757,2]
[393999238,1763172495916,-500.0,0.00021757,2]
[393999239,1763172495939,-500.0,0.00021757,2]
[393999240,1763172495964,-500.0,0.00021757,2]
[393999241,1763172495990,-500.0,0.00021757,2]
[393999242,1763172496016,-500.0,0.00021757,2]
[393999243,1763172496042,-500.0,0.00021757,2]
[393999244,1763172496066,-500.0,0.00021757,2]
[393999245,1763172496089,-500.0,0.00021757,2]
[393999246,1763172496115,-500.0,0.00021757,2]
[393999247,1763172496138,-500.0,0.00021757,2]
[393999248,1763172496164,-489.37763662,0.00021757,2]
[393999249,1763172496188,-500.0,0.00021757,2]
[393999250,1763172496214,-500.0,0.00021757,2]
[393999251,1763172496242,-500.0,0.00021757,2]
[393999252,1763172496269,-210.50880746,0.00021757,2]
[393999253,1763172496298,-500.0,0.00021757,2]
[393999254,1763172496324,-500.0,0.00021757,2]
[393999255,1763172496353,-500.0,0.00021757,2]
[393999256,1763172496379,-374.40876454,0.00021757,2]
[393999257,1763172496410,-500.0,0.00021757,2]
[393999258,1763172496439,-500.0,0.00021757,2]
[393999259,1763172496461,-293.08,0.00021757,2]
[393999260,1763172496486,-50000.0,0.00021758,2]
[393999261,1763172496512,-151.0,0.00021758,2]
[393999262,1763172496535,-151.0,0.00021758,2]
[393999263,1763172496559,-151.0,0.00021758,2]
[393999264,1763172496582,-151.0,0.00021758,2]
[393999265,1763172496605,-151.0,0.00021758,2]
[393999266,1763172496627,-151.0,0.00021758,2]
[393999267,1763172496649,-151.0,0.00021758,2]
[393999268,1763172496672,-151.0,0.00021758,2]
[393999269,1763172496695,-151.0,0.00021758,2]
[393999270,1763172496717,-151.0,0.00021758,2]
[393999271,1763172496742,-151.0,0.00021758,2]
[393999272,1763172496764,-180.20467411,0.00021758,2]
[393999273,1763172496787,-1200.0,0.00021759,2]
[393999274,1763172496809,-837.16,0.00021761,3]
[393999275,1763172496831,-171.68500501,0.00021768,2]
[393999276,1763172496853,-436.07903327,0.0002177,2]
[393999277,1763172496874,-500.0,0.0002177,2]
[393999278,1763172496896,-500.0,0.0002177,2]
[393999279,1763172496917,-238.6266457,0.0002177,2]
[393999280,1763172508746,-890000.0,0.00021771,2]
[393999281,1763172508767,-500.0,0.00021773,2]
[393999282,1763172508788,-501.19353438,0.00021773,2]
[393999283,1763172508808,-441.26984094,0.00021773,2]
[393999284,1763172508828,-501.29076547,0.00021773,2]
[393999285,1763172508849,-501.04462013,0.00021773,2]
[393999286,1763172508870,-500.79728517,0.00021773,2]
[393999287,1763172508891,-500.0,0.00021773,2]
[393999288,1763172508912,-501.91318419,0.00021773,2]
[393999289,1763172508934,-500.0,0.00021773,2]
[393999290,1763172508954,-500.80298645,0.00021773,2]
[393999291,1763172508976,-514.39947114,0.00021773,2]
[393999292,1763172508998,-501.11411865,0.00021773,2]
[393999293,1763172509020,-500.0,0.00021773,2]
[393999294,1763172509040,-501.54329375,0.00021873,2]
[393999295,1763172509062,-480.19163699,0.00021888,2]
[393999296,1763172509084,-500.0,0.00021888,2]
[393999297,1763172509106,-500.0,0.00021888,2]
[393999298,1763172509328,-500.0,0.00021888,2]
[393999299,1763172509351,-500.0,0.000219,2]
[393999300,1763172509372,-279.82867257,0.00021901,2]
[393999301,1763172509393,-173.70051998,0.00021918,2]
[393999302,1763172509417,-502.63931033,0.00021973,2]
[393999303,1763172509438,-501.86696439,0.00021973,2]
[393999304,1763172509462,-500.0,0.00021973,2]
[393999305,1763172509485,-502.2374268,0.00021973,2]
[393999306,1763172509507,-501.1299011,0.00021973,2]
[393999307,1763172509529,-259.26224942,0.0002199,2]
[393999308,1763172509550,-979.0,0.00022,2]
[393999309,1763172509570,-500.0,0.00022047,2]
[393999310,1763172509591,-450.7,0.00022067,2]
[393999311,1763172509613,-151.0,0.000221,8]
[393999312,1763172509634,-1474.09262319,0.00022167,2]
[393999313,1763172509654,-999.0,0.00022203,2]
[393999314,1763172509677,-600.0,0.00022205,20]
[393999315,1763172509698,-512.44042801,0.00022321,2]
[393999316,1763172509719,-501.64416043,0.00022321,2]
[393999317,1763172509740,-501.83390598,0.00022321,2]
[393999318,1763172509763,-517.2317818,0.00022321,2]
[393999319,1763172509785,-218.98728973,0.00022521,2]
[393999320,1763172509806,-507.25479919,0.00022575,2]
[393999321,1763172509827,-502.1401063,0.00022633,2]
[393999322,1763172509848,-502.34423643,0.00022633,2]
[393999323,1763172509869,-500.0,0.00022633,2]
[393999324,1763172509889,-503.97428765,0.00022633,2]
[393999325,1763172509911,-151.0,0.000229,7]
[393999326,1763172509933,-1000.0,0.00023181,2]
[393999327,1763172509954,-151.0,0.000235,9]
[393999328,1763172509975,-502.0105089,0.0002358,2]
[393999329,1763172509998,-500.0,0.0002358,2]
[393999330,1763172510021,-500.0,0.0002358,2]
[393999331,1763172510043,-500.0,0.0002358,2]
[393999332,1763172510066,-500.0,0.0002358,2]
[393999333,1763172510087,-500.0,0.0002358,2]
[393999334,1763172510108,-200.0,0.000236,2]
[393999335,1763172510130,-837.0,0.00023647,2]
[393999336,1763172510152,-420.0,0.00023647,2]
[393999337,1763172510174,-177.0,0.00023669,2]
[393999338,1763172510195,-150.0,0.000237,2]
[393999339,1763172510217,-301.88257163,0.00023729,2]
[393999340,1763172510239,-1680.0,0.00023762,2]
[393999341,1763172510263,-500.85199371,0.00023771,2]
[393999342,1763172510285,-500.0,0.00023771,2]
[393999343,1763172510306,-500.0,0.00023771,2]
[393999344,1763172510326,-501.01682425,0.00023771,2]
[393999345,1763172510347,-199.83070065,0.00024128,2]
[393999346,1763172510368,-503.55272892,0.00024128,2]
[393999347,1763172510390,-1000.0,0.00024128,2]
[393999348,1763172510421,-503.04312465,0.00024128,2]
[393999349,1763172510443,-504.68130408,0.00024128,2]
[393999350,1763172510466,-283.195514,0.000242,2]
[393999351,1763172510489,-864.96096418,0.00024243,4]
[393999352,1763172510513,-151.18791006,0.00024248,2]
[393999353,1763172510533,-434.68754888,0.00024248,4]
[393999354,1763172510555,-283.195514,0.00024288,2]
[393999355,1763172510577,-1000.0,0.00024319,2]
[393999356,1763172510597,-501.94432142,0.00024319,2]
[393999357,1763172510619,-283.195514,0.00024375,2]
[393999358,1763172510643,-720.0,0.00024426,20]
[393999359,1763172510664,-283.195514,0.00024462,2]
[393999360,1763172510686,-157.29296,0.0002455,2]
[393999361,1763172510708,-283.195514,0.0002455,2]
[393999362,1763172510728,-1500.0,0.00024676,2]
[393999363,1763172510750,-500.56604722,0.00024773,2]
[393999364,1763172510771,-1500.0,0.00024867,2]
[393999365,1763172510793,-500.79310865,0.00024873,2]
[393999366,1763172510815,-65381.85041224,0.000249,2]
[393999367,1763172516778,-264434.57823876,0.000249,2]
[393999368,1763172516800,-160.0,0.00024912,2]
[393999369,1763172516822,-769.27518768,0.00024924,2]
[393999370,1763172516844,-3459.84385671,0.00024929,4]
[393999371,1763172516866,-1738.75019551,0.00024934,4]
[393999372,1763172516888,-2449.76527139,0.00025019,2]
[393999373,1763172516910,-769.27518768,0.00025026,2]
[393999374,1763172516930,-769.27518768,0.00025127,2]
[393999375,1763172516952,-2000.0,0.00025224,2]
[393999376,1763172516974,-769.27518768,0.00025229,2]
[393999377,1763172516996,-769.27518768,0.0002533,2]
[393999378,1763172517018,-35116.52036918,0.0002533,2]
[393999379,1763172517042,-600.0,0.00025397,20]
[393999380,1763172517064,-2022.05155295,0.00025415,2]
[393999381,1763172517085,-769.27518768,0.00025432,2]
[393999382,1763172517107,-260.0,0.0002546,2]
[393999383,1763172517287,-770.04446287,0.00025533,2]
[393999384,1763172517310,-204.0,0.0002567,2]
[393999385,1763172517332,-232.67965155,0.000257,2]
[393999386,1763172517352,-232.67965155,0.000257,2]
[393999387,1763172517373,-246.0,0.000257,2]
[393999388,1763172517395,-587.0,0.00025703,2]
[393999389,1763172517421,-2500.0,0.00025772,2]
[393999390,1763172517442,-835.0,0.00025949,2]
[393999391,1763172517467,-283.195514,0.00026,7]
[393999392,1763172517488,-360.0,0.00026008,2]
[393999393,1763172517511,-500.0,0.00026027,2]
[393999394,1763172517532,-521.7351197,0.00026027,2]
[393999395,1763172517554,-1910.47213521,0.0002632,2]
[393999396,1763172517575,-460.0,0.00026556,2]
[393999397,1763172517596,-560.0,0.00027104,2]
[393999398,1763172517617,-2449.76527139,0.00027422,2]
[393999399,1763172517638,-660.0,0.00027651,2]
[393999400,1763172517659,-231.0,0.0002767,2]
[393999401,1763172517680,-3078.87,0.000278,2]
[393999402,1763172517700,-823.0,0.00027938,2]
[393999403,1763172517722,-4100.95937954,0.00027941,2]
[393999404,1763172517745,-760.0,0.00028199,2]
[393999405,1763172517768,-860.0,0.00028747,2]
[393999406,1763172517792,-176.05430552,0.00028844,2]
[393999407,1763172517813,-230.4619779,0.000289,2]
[393999408,1763172517834,-352.1086111,0.000289,2]
[393999409,1763172517856,-1071.74946453,0.00029295,2]
[393999410,1763172517877,-352.1086111,0.00029505,9]
[393999411,1763172517898,-2449.76527139,0.00029824,2]
[393999412,1763172517938,720.0,0.00027937,30]
[393999413,1763172521603,500.0,0.00024899,2]
[393999414,1763172521634,305.25532329,0.00024899,2]
[393999415,1763172521672,367.03865199,0.00024899,2]
[393999416,1763172522532,500.0,0.00024127,2]
[393999417,1763172522557,263.82319606,0.00024127,2]
[393999418,1763172522585,349.10722512,0.00024127,2]
[393999419,1763172522610,467.83431194,0.00024127,2]
[393999420,1763172522642,500.0,0.00024127,2]
[393999425,1763172627411,-890000.0,0.00021658,2]
[393999466,1763172632287,-500.0,0.0002177,2]
[393999468,1763172632296,-237.08588078,0.0002177,2]
[393999532,1763172638243,-262.91411922,0.0002177,2]
[393999533,1763172638253,-500.0,0.0002177,2]
[393999534,1763172638263,-500.0,0.0002177,2]
[393999535,1763172638273,-500.0,0.0002177,2]
[393999536,1763172638283,-500.0,0.0002177,2]
[393999537,1763172638292,-500.0,0.0002177,2]
[393999538,1763172638301,-500.0,0.0002177,2]
[393999539,1763172638310,-500.0,0.0002177,2]
[393999540,1763172638320,-500.0,0.0002177,2]
[393999541,1763172638330,-500.0,0.0002177,2]
[393999542,1763172638339,-500.0,0.0002177,2]
[393999543,1763172638349,-500.0,0.0002177,2]
[393999544,1763172638360,-500.0,0.0002177,2]
[393999545,1763172638370,-500.0,0.0002177,2]
[393999546,1763172638380,-500.0,0.0002177,2]
[393999547,1763172638389,-500.0,0.0002177,2]
[393999548,1763172638399,-500.0,0.0002177,2]
[393999549,1763172638409,-480.77424759,0.0002177,2]
[393999551,1763172638418,-500.88433886,0.00021773,2]
[393999553,1763172638428,-600.0,0.00022204,20]
[393999554,1763172638437,-502.35986167,0.0002346,2]
[393999555,1763172638447,-503.04740363,0.0002346,2]
[393999556,1763172638459,-720.0,0.00024425,20]
[393999557,1763172638468,-864.0,0.00026867,30]
[393999558,1763172638477,-977.2545365,0.00027587,2]
[393999559,1763172638487,-977.2545365,0.00027587,2]
[393999560,1763172638498,-1000.0,0.00029554,30]
[393999561,1763172638508,-352.1086111,0.00030109,17]
[393999562,1763172638518,-176.05430551,0.00030362,30]
[393999563,1763172638527,-2000.0,0.00030436,7]
[393999564,1763172638537,-174.88232512,0.00030519,10]
[393999565,1763172638547,-352.1086111,0.00030713,25]
[393999566,1763172638556,-1385.56656205,0.00030885,2]
[393999567,1763172638566,-325.797206,0.00031146,2]
[393999568,1763172638575,-352.1086111,0.00031317,32]
[393999569,1763172638585,-2460.7662142,0.00031405,2]
[393999570,1763172638594,-205.04742542,0.0003167,2]
[393999571,1763172638603,-153.95184023,0.0003184,2]
[393999572,1763172638612,-615.80736091,0.0003184,2]
[393999573,1763172638622,-167.09473172,0.0003184,2]
[393999574,1763172638631,-668.37892686,0.0003184,2]
[393999575,1763172638640,-1503.85258544,0.0003184,2]
[393999576,1763172638649,-2673.51570746,0.0003184,2]
[393999577,1763172638658,-352.1086111,0.00031921,40]
[393999578,1763172638667,-2588.99060833,0.00032115,2]
[393999579,1763172638677,-10000.0,0.00032197,10]
[393999580,1763172638686,-10000.0,0.00032206,10]
[393999581,1763172638695,-10000.0,0.00032214,10]
[393999582,1763172638704,-2449.76527139,0.00032226,2]
[393999583,1763172638714,-500.0,0.00032273,5]
[393999584,1763172638722,-500.61430866,0.00032273,5]
[393999585,1763172638731,-4173.19092461,0.00032274,2]
[393999586,1763172638740,-1000.0,0.00032509,30]
[393999587,1763172638750,-244.0,0.00032509,30]
[393999588,1763172638760,-352.1086111,0.00032525,48]
[393999589,1763172638769,-504.87245007,0.00032821,5]
[393999590,1763172638778,-250.99999639,0.00032877,7]
[393999591,1763172638787,-3078.87,0.000331,14]
[393999592,1763172638796,-230.4619779,0.00033129,56]
[393999593,1763172638805,-352.1086111,0.00033129,56]
[393999594,1763172638815,-283.195514,0.00033198,7]
[393999595,1763172638824,-223.872892,0.000332,117]
[393999596,1763172638833,-352.1086111,0.00033733,63]
[393999597,1763172638843,-352.1086111,0.00034337,71]
[393999598,1763172638852,-5000.0,0.00034441,2]
[393999599,1763172638862,-2449.76527139,0.00034628,2]
[393999600,1763172638872,-352.1086111,0.00034942,79]
[393999601,1763172638881,-159.0,0.00035,120]
[393999602,1763172638891,-204.02394866,0.00035,2]
[393999603,1763172638900,-209.0,0.00035,120]
[393999604,1763172638909,-352.1086111,0.00035546,86]
[393999605,1763172638919,-503.7769313,0.00035616,5]
[393999606,1763172638929,-1000.0,0.0003576,30]
[393999607,1763172638939,-492.0,0.0003576,30]
[393999608,1763172638949,-992.0,0.00036074,7]
[393999609,1763172638959,-994.0,0.00036082,2]
[393999610,1763172638969,-352.1086111,0.0003615,94]
[393999611,1763172638979,-154.26,0.00036201,60]
[393999612,1763172638989,-173.16,0.00036201,60]
[393999613,1763172638999,-992.0,0.00036205,120]
[393999614,1763172639009,-154.26,0.00036301,60]
[393999615,1763172639019,-173.16,0.00036301,60]
[393999616,1763172639028,-992.0,0.00036315,2]
[393999617,1763172639038,-488.62726825,0.00036387,16]
[393999618,1763172639048,-154.26,0.00036401,60]
[393999619,1763172639058,-173.16,0.00036401,60]
[393999620,1763172639067,-992.0,0.00036475,2]
[393999621,1763172639078,-154.26,0.00036501,60]
[393999622,1763172639088,-173.16,0.00036501,60]
[393999623,1763172639098,-995.0,0.00036566,2]
[393999624,1763172639110,-992.0,0.00036585,2]
[393999625,1763172639120,-154.26,0.00036601,60]
[393999626,1763172639131,-173.16,0.00036601,60]
[393999627,1763172639142,-154.26,0.00036701,60]
[393999628,1763172639152,-173.16,0.00036701,60]
[393999629,1763172639162,-352.1086111,0.00036754,102]
[393999630,1763172639173,-154.26,0.00036801,60]
[393999631,1763172639183,-173.16,0.00036801,60]
[393999632,1763172639193,-154.26,0.00036901,60]
[393999633,1763172639203,-173.16,0.00036901,60]
[393999634,1763172639213,-606.9270564,0.00036981,7]
[393999635,1763172639223,-213.67872631,0.00036981,15]
[393999636,1763172639233,-992.0,0.00036982,2]
[393999637,1763172639243,-154.33292013,0.00037001,60]
[393999638,1763172639253,-173.16,0.00037001,60]
[393999639,1763172639265,-995.0,0.00037014,120]
[393999640,1763172639275,-2449.76527139,0.00037031,2]
[393999641,1763172639285,-3078.87,0.000371,14]
[393999642,1763172639294,-173.16,0.00037101,60]
[393999643,1763172639304,-173.16,0.00037201,60]
[393999644,1763172639313,-173.16,0.00037301,60]
[393999645,1763172639323,-230.4619779,0.00037358,110]
[393999646,1763172639332,-2588.99060827,0.0003737,2]
[393999647,1763172639342,-173.16,0.00037401,60]
[393999648,1763172639354,-173.16,0.00037501,60]
[393999649,1763172639364,-992.0,0.00037515,2]
[393999650,1763172639374,-994.0,0.00037585,2]
[393999651,1763172639383,-173.16,0.00037601,60]
[393999652,1763172639393,-173.16,0.00037701,60]
[393999653,1763172639402,-173.16,0.00037801,60]
[393999654,1763172639412,-992.0,0.00037806,2]
[393999655,1763172639422,-995.0,0.0003785,7]
[393999656,1763172639431,-283.195514,0.000379,60]
[393999657,1763172639441,-173.16,0.00037901,60]
[393999658,1763172639451,-173.16,0.00038001,60]
[393999659,1763172639464,-173.16,0.00038101,60]
[393999660,1763172639473,-283.195514,0.00038104,60]
[393999661,1763172639483,-173.16,0.00038201,60]
[393999662,1763172639493,-994.0,0.00038232,7]
[393999663,1763172639503,-992.0,0.00038243,2]
[393999664,1763172639513,-173.16,0.00038301,60]
[393999665,1763172639523,-283.195514,0.00038308,60]
[393999666,1763172639533,-173.16,0.00038401,120]
[393999667,1763172639543,-994.0,0.0003843,2]
[393999668,1763172639552,-992.0,0.00038441,7]
[393999669,1763172639562,-173.16,0.00038501,120]
[393999670,1763172639571,-283.195514,0.00038513,60]
[393999671,1763172639581,-173.16,0.00038601,120]
[393999672,1763172639596,-992.0,0.0003868,2]
[393999673,1763172639618,-992.0,0.00038684,2]
[393999674,1763172639634,-173.16,0.00038701,120]
[393999675,1763172639645,-283.195514,0.00038717,60]
[393999676,1763172639655,-362.21152517,0.00038791,15]
[393999677,1763172639664,-249.29057005,0.00038797,2]
[393999678,1763172639674,-173.16,0.00038801,120]
[393999679,1763172639684,-173.16,0.00038901,120]
[393999680,1763172639694,-992.0,0.00038912,7]
[393999681,1763172639703,-281.94,0.0003894,10]
[393999682,1763172639712,-150.0,0.00038987,10]
[393999683,1763172639721,-2000.0,0.00038987,10]
[393999684,1763172639731,-173.16,0.00039001,120]
[393999685,1763172639740,-3078.87,0.000391,14]
[393999686,1763172639751,-173.16,0.00039101,120]
[393999687,1763172639760,-992.0,0.00039139,2]
[393999688,1763172639769,-992.0,0.00039169,120]
[393999689,1763172639778,-992.0,0.00039189,7]
[393999690,1763172639787,-173.16,0.00039201,120]
[393999691,1763172639797,-173.16,0.00039301,120]
[393999692,1763172639806,-679.0,0.00039336,90]
[393999693,1763172639816,-173.16,0.00039401,120]
[393999694,1763172639826,-994.0,0.00039406,120]
[393999695,1763172639836,-2449.76527139,0.00039433,2]
[393999696,1763172639845,-992.0,0.0003947,120]
[393999697,1763172639855,-173.16,0.00039501,120]
[393999698,1763172639864,-183.90945505,0.000396,120]
[393999699,1763172639874,-1372.88107901,0.000396,120]
[393999700,1763172639884,-192.03659602,0.000396,120]
[393999701,1763172639894,-303.57153172,0.000396,120]
[393999702,1763172639903,-183.27797614,0.000396,120]
[393999703,1763172639913,-160.28857289,0.000396,120]
[393999704,1763172639923,-171.34017661,0.000396,120]